Workbook

Sheet NGC0289
B3: ρ(r) = ρ0sech^8( r/ r_c)
A6: M(R) =4πρ0,r_c^3 ·I(u) | C6: u = R/r_c | D6: I(u) = Integrale de 0 à u de ( x^2sech^8(x)dx | H6: V_TURI(R) = Racine (G·M(R)/R)
H8: G= | I8: =4.3009*POWER(10,-6) -> 4.3009e-06 | J8: 10^-6,KPC,(Km/s)^2/Mo
A9: NGC0289 | B9: R_max= | C9: =A42 -> 71.12 | D9: V_obs(R_max)= | E9: =B42 -> 165
B10: M_totale= | C10: V_obs^2(R_max).R_max/G= | E10: =E9*E9*C9/I8 -> 4.501946104e+11 | F10: Mo | G10: I(infini)= | H10: 0.0648738184
G11: M(R) = racine(G,M(R)/R)
B12: r_c=R_max/2= | C12: =C9/2 -> 35.56 | D12: ρ0=M_tot/4.π.r_c^3.I(infini)= | E12: =E10/(POWER(C12,3)*4*3.14159*H10) -> 12281066.32 | F12: Mo/kpc^3 | G12: π= | H12: 3.14159
A14: R | B14: V_obs | C14: Incer V_obs | D14: u=R/r-c | E14: I(U) par table | F14: M(R) | G14: V_TURI | H14: Erreur % | J14: calculs intermediaires de I(u)
A15: 1.5 | B15: 164 | C15: 28.2 | D15: =A15/$C$12 -> 0.04218222722 | E15: =N15*K15+O15*M15 -> 2.634511136e-05 | F15: =4*$H$12*$E$12*POWER($C$12,3)*E15 -> 182823016.1 | G15: =POWER($I$8*F15/A15,0.5) -> 22.89546549 | H15: =ROUND(ABS((B15-G15)/B15)*100,2) -> 86.04 | I15: 1 | J15: =INDEX(Integrale!$H$3:$H$502,MATCH('NGC0289'!D15,Integrale!$H$3:$H$502,1)) -> 0.04 | K15: =INDEX(Integrale!$I$3:$I$502,MATCH('NGC0289'!D15,Integrale!$H$3:$H$502,1)) -> 2.19098e-05 | L15: =INDEX(Integrale!$H$3:$H$502,MATCH('NGC0289'!D15,Integrale!$H$3:$H$502,1)+1) -> 0.05 | M15: =INDEX(Integrale!$I$3:$I$502,MATCH('NGC0289'!D15,Integrale!$H$3:$H$502,1)+1) -> 4.22345e-05 | N15: =(L15-D15)/(L15-J15) -> 0.7817772778 | O15: =(D15-J15)/(L15-J15) -> 0.2182227222
A16: 2.52 | B16: 194 | C16: 32 | D16: =A16/$C$12 -> 0.07086614173 | E16: =N16*K16+O16*M16 -> 0.0001189032661 | F16: =4*$H$12*$E$12*POWER($C$12,3)*E16 -> 825134251.4 | G16: 37.52681529 | H16: 80.66 | I16: =I15+1 -> 2 | J16: =INDEX(Integrale!$H$3:$H$502,MATCH('NGC0289'!D16,Integrale!$H$3:$H$502,1)) -> 0.07 | K16: =INDEX(Integrale!$I$3:$I$502,MATCH('NGC0289'!D16,Integrale!$H$3:$H$502,1)) -> 0.0001141207 | L16: =INDEX(Integrale!$H$3:$H$502,MATCH('NGC0289'!D16,Integrale!$H$3:$H$502,1)+1) -> 0.08 | M16: =INDEX(Integrale!$I$3:$I$502,MATCH('NGC0289'!D16,Integrale!$H$3:$H$502,1)+1) -> 0.0001693376 | N16: =(L16-D16)/(L16-J16) -> 0.9133858268 | O16: 0.08661417323
A17: 3.46 | B17: 175 | C17: 25.2 | D17: 0.09730033746 | E17: 0.0003034379534 | F17: 2105720530 | G17: 51.16134917 | H17: 70.76 | I17: =I16+1 -> 3 | J17: =INDEX(Integrale!$H$3:$H$502,MATCH('NGC0289'!D17,Integrale!$H$3:$H$502,1)) -> 0.09 | K17: =INDEX(Integrale!$I$3:$I$502,MATCH('NGC0289'!D17,Integrale!$H$3:$H$502,1)) -> 0.0002397401 | L17: =INDEX(Integrale!$H$3:$H$502,MATCH('NGC0289'!D17,Integrale!$H$3:$H$502,1)+1) -> 0.1 | M17: =INDEX(Integrale!$I$3:$I$502,MATCH('NGC0289'!D17,Integrale!$H$3:$H$502,1)+1) -> 0.0003269934 | N17: 0.2699662542 | O17: 0.7300337458
A18: 4.32 | B18: 185 | C18: 31.5 | D18: 0.1214848144 | E18: 0.0005801320508 | F18: 4025850938 | G18: 63.30917357 | H18: 65.78 | I18: 4 | J18: =INDEX(Integrale!$H$3:$H$502,MATCH('NGC0289'!D18,Integrale!$H$3:$H$502,1)) -> 0.12 | K18: =INDEX(Integrale!$I$3:$I$502,MATCH('NGC0289'!D18,Integrale!$H$3:$H$502,1)) -> 0.0005583096 | L18: =INDEX(Integrale!$H$3:$H$502,MATCH('NGC0289'!D18,Integrale!$H$3:$H$502,1)+1) -> 0.13 | M18: =INDEX(Integrale!$I$3:$I$502,MATCH('NGC0289'!D18,Integrale!$H$3:$H$502,1)+1) -> 0.0007052805 | N18: 0.8515185602 | O18: 0.1484814398
A19: 5.43 | B19: 175 | C19: 27.9 | D19: 0.1526996625 | E19: 0.001127362946 | F19: 7823382915 | G19: 78.71854375 | H19: 55.02 | I19: 5 | J19: =INDEX(Integrale!$H$3:$H$502,MATCH('NGC0289'!D19,Integrale!$H$3:$H$502,1)) -> 0.15 | K19: =INDEX(Integrale!$I$3:$I$502,MATCH('NGC0289'!D19,Integrale!$H$3:$H$502,1)) -> 0.0010683906 | L19: =INDEX(Integrale!$H$3:$H$502,MATCH('NGC0289'!D19,Integrale!$H$3:$H$502,1)+1) -> 0.16 | M19: =INDEX(Integrale!$I$3:$I$502,MATCH('NGC0289'!D19,Integrale!$H$3:$H$502,1)+1) -> 0.001286834 | N19: 0.7300337458 | O19: 0.2699662542
A20: 6.38 | B20: 167 | C20: 27.2 | D20: 0.1794150731 | E20: 0.001786562078 | F20: 1.239792321e+10 | G20: 91.42054461 | H20: 45.26 | I20: 6 | J20: =INDEX(Integrale!$H$3:$H$502,MATCH('NGC0289'!D20,Integrale!$H$3:$H$502,1)) -> 0.17 | K20: =INDEX(Integrale!$I$3:$I$502,MATCH('NGC0289'!D20,Integrale!$H$3:$H$502,1)) -> 0.001531222 | L20: =INDEX(Integrale!$H$3:$H$502,MATCH('NGC0289'!D20,Integrale!$H$3:$H$502,1)+1) -> 0.18 | M20: =INDEX(Integrale!$I$3:$I$502,MATCH('NGC0289'!D20,Integrale!$H$3:$H$502,1)+1) -> 0.0018024255 | N20: 0.05849268841 | O20: 0.9415073116
A21: 7.57 | B21: 176 | C21: 7.18 | D21: 0.21287964 | E21: 0.002894663857 | F21: 2.008764244e+10 | G21: 106.8307352 | H21: 39.3 | I21: 7 | J21: =INDEX(Integrale!$H$3:$H$502,MATCH('NGC0289'!D21,Integrale!$H$3:$H$502,1)) -> 0.21 | K21: =INDEX(Integrale!$I$3:$I$502,MATCH('NGC0289'!D21,Integrale!$H$3:$H$502,1)) -> 0.0027838579 | L21: =INDEX(Integrale!$H$3:$H$502,MATCH('NGC0289'!D21,Integrale!$H$3:$H$502,1)+1) -> 0.22 | M21: =INDEX(Integrale!$I$3:$I$502,MATCH('NGC0289'!D21,Integrale!$H$3:$H$502,1)+1) -> 0.0031686489 | N21: 0.7120359955 | O21: 0.2879640045
A22: 10.6 | B22: 185 | C22: 4.29 | D22: 0.298087739 | E22: 0.007183970988 | F22: 4.985347094e+10 | G22: 142.224508 | H22: 23.12 | I22: 8 | J22: =INDEX(Integrale!$H$3:$H$502,MATCH('NGC0289'!D22,Integrale!$H$3:$H$502,1)) -> 0.29 | K22: =INDEX(Integrale!$I$3:$I$502,MATCH('NGC0289'!D22,Integrale!$H$3:$H$502,1)) -> 0.0066846487 | L22: =INDEX(Integrale!$H$3:$H$502,MATCH('NGC0289'!D22,Integrale!$H$3:$H$502,1)+1) -> 0.3 | M22: =INDEX(Integrale!$I$3:$I$502,MATCH('NGC0289'!D22,Integrale!$H$3:$H$502,1)+1) -> 0.0073020305 | N22: 0.1912260967 | O22: 0.8087739033
A23: 13.57 | B23: 183 | C23: 4.22 | D23: 0.3816085489 | E23: 0.01328815895 | F23: 9.221374187e+10 | G23: 170.9572689 | H23: 6.58 | I23: 9 | J23: =INDEX(Integrale!$H$3:$H$502,MATCH('NGC0289'!D23,Integrale!$H$3:$H$502,1)) -> 0.38 | K23: =INDEX(Integrale!$I$3:$I$502,MATCH('NGC0289'!D23,Integrale!$H$3:$H$502,1)) -> 0.0131545302 | L23: =INDEX(Integrale!$H$3:$H$502,MATCH('NGC0289'!D23,Integrale!$H$3:$H$502,1)+1) -> 0.39 | M23: =INDEX(Integrale!$I$3:$I$502,MATCH('NGC0289'!D23,Integrale!$H$3:$H$502,1)+1) -> 0.0139852712 | N23: 0.8391451069 | O23: 0.1608548931
A24: 16.64 | B24: 172 | C24: 4.33 | D24: 0.4679415073 | E24: 0.02097697146 | F24: 1.455705819e+11 | G24: 193.9723469 | H24: 12.77 | I24: 10 | J24: =INDEX(Integrale!$H$3:$H$502,MATCH('NGC0289'!D24,Integrale!$H$3:$H$502,1)) -> 0.46 | K24: =INDEX(Integrale!$I$3:$I$502,MATCH('NGC0289'!D24,Integrale!$H$3:$H$502,1)) -> 0.0202323944 | L24: =INDEX(Integrale!$H$3:$H$502,MATCH('NGC0289'!D24,Integrale!$H$3:$H$502,1)+1) -> 0.47 | M24: =INDEX(Integrale!$I$3:$I$502,MATCH('NGC0289'!D24,Integrale!$H$3:$H$502,1)+1) -> 0.0211699709 | N24: 0.2058492688 | O24: 0.7941507312
A25: 19.71 | B25: 161 | C25: 4.24 | D25: 0.5542744657 | E25: 0.02921648767 | F25: 2.027490536e+11 | G25: 210.3370498 | H25: 30.64 | I25: 11 | J25: =INDEX(Integrale!$H$3:$H$502,MATCH('NGC0289'!D25,Integrale!$H$3:$H$502,1)) -> 0.55 | K25: =INDEX(Integrale!$I$3:$I$502,MATCH('NGC0289'!D25,Integrale!$H$3:$H$502,1)) -> 0.0288093767 | L25: =INDEX(Integrale!$H$3:$H$502,MATCH('NGC0289'!D25,Integrale!$H$3:$H$502,1)+1) -> 0.56 | M25: =INDEX(Integrale!$I$3:$I$502,MATCH('NGC0289'!D25,Integrale!$H$3:$H$502,1)+1) -> 0.0297618021 | N25: 0.5725534308 | O25: 0.4274465692
A26: 22.68 | B26: 156 | C26: 5.08 | D26: 0.6377952756 | E26: =N26*K26+O26*M26 -> 0.0369292949 | F26: 2.562724061e+11 | G26: 220.4494758 | H26: 41.31 | I26: 12 | J26: =INDEX(Integrale!$H$3:$H$502,MATCH('NGC0289'!D26,Integrale!$H$3:$H$502,1)) -> 0.63 | K26: =INDEX(Integrale!$I$3:$I$502,MATCH('NGC0289'!D26,Integrale!$H$3:$H$502,1)) -> 0.0362383877 | L26: =INDEX(Integrale!$H$3:$H$502,MATCH('NGC0289'!D26,Integrale!$H$3:$H$502,1)+1) -> 0.64 | M26: =INDEX(Integrale!$I$3:$I$502,MATCH('NGC0289'!D26,Integrale!$H$3:$H$502,1)+1) -> 0.037124703 | N26: 0.2204724409 | O26: 0.7795275591
A27: 25.75 | B27: 159 | C27: 6.49 | D27: =A27/$C$12 -> 0.724128234 | E27: =N27*K27+O27*M27 -> 0.04403239003 | F27: =4*$H$12*$E$12*POWER($C$12,3)*E27 -> 3.055646356e+11 | G27: =POWER($I$8*F27/A27,0.5) -> 225.9137168 | H27: =ROUND(ABS((B27-G27)/B27)*100,2) -> 42.08 | I27: 13 | J27: =INDEX(Integrale!$H$3:$H$502,MATCH('NGC0289'!D27,Integrale!$H$3:$H$502,1)) -> 0.72 | K27: =INDEX(Integrale!$I$3:$I$502,MATCH('NGC0289'!D27,Integrale!$H$3:$H$502,1)) -> 0.0437207705 | L27: =INDEX(Integrale!$H$3:$H$502,MATCH('NGC0289'!D27,Integrale!$H$3:$H$502,1)+1) -> 0.73 | M27: =INDEX(Integrale!$I$3:$I$502,MATCH('NGC0289'!D27,Integrale!$H$3:$H$502,1)+1) -> 0.04447562 | N27: =(L27-D27)/(L27-J27) -> 0.5871766029 | O27: =(D27-J27)/(L27-J27) -> 0.4128233971
A28: 28.72 | B28: 173 | C28: 6.97 | D28: 0.8076490439 | E28: 0.04975134178 | F28: 3.452515434e+11 | G28: 227.3815743 | H28: 31.43 | I28: 14 | J28: =INDEX(Integrale!$H$3:$H$502,MATCH('NGC0289'!D28,Integrale!$H$3:$H$502,1)) -> 0.8 | K28: =INDEX(Integrale!$I$3:$I$502,MATCH('NGC0289'!D28,Integrale!$H$3:$H$502,1)) -> 0.0492798642 | L28: =INDEX(Integrale!$H$3:$H$502,MATCH('NGC0289'!D28,Integrale!$H$3:$H$502,1)+1) -> 0.81 | M28: =INDEX(Integrale!$I$3:$I$502,MATCH('NGC0289'!D28,Integrale!$H$3:$H$502,1)+1) -> 0.0498962518 | N28: 0.235095613 | O28: 0.764904387
A29: 31.79 | B29: 177 | C29: 6.57 | D29: 0.8939820022 | E29: 0.05438987479 | F29: 3.774408397e+11 | G29: 225.9741978 | H29: 27.67 | I29: 15 | J29: =INDEX(Integrale!$H$3:$H$502,MATCH('NGC0289'!D29,Integrale!$H$3:$H$502,1)) -> 0.89 | K29: =INDEX(Integrale!$I$3:$I$502,MATCH('NGC0289'!D29,Integrale!$H$3:$H$502,1)) -> 0.0542053641 | L29: =INDEX(Integrale!$H$3:$H$502,MATCH('NGC0289'!D29,Integrale!$H$3:$H$502,1)+1) -> 0.9 | M29: =INDEX(Integrale!$I$3:$I$502,MATCH('NGC0289'!D29,Integrale!$H$3:$H$502,1)+1) -> 0.0546687257 | N29: 0.601799775 | O29: 0.398200225
A30: 34.77 | B30: 179 | C30: 4.47 | D30: 0.977784027 | E30: 0.05774938286 | F30: 4.007542883e+11 | G30: 222.6467788 | H30: 24.38 | I30: 16 | J30: =INDEX(Integrale!$H$3:$H$502,MATCH('NGC0289'!D30,Integrale!$H$3:$H$502,1)) -> 0.97 | K30: =INDEX(Integrale!$I$3:$I$502,MATCH('NGC0289'!D30,Integrale!$H$3:$H$502,1)) -> 0.0574815594 | L30: =INDEX(Integrale!$H$3:$H$502,MATCH('NGC0289'!D30,Integrale!$H$3:$H$502,1)+1) -> 0.98 | M30: =INDEX(Integrale!$I$3:$I$502,MATCH('NGC0289'!D30,Integrale!$H$3:$H$502,1)+1) -> 0.0578256274 | N30: 0.2215973003 | O30: 0.7784026997
A31: 37.84 | B31: 181 | C31: 4.26 | D31: 1.064116985 | E31: 0.06022127857 | F31: 4.179081133e+11 | G31: 217.9437955 | H31: 20.41 | I31: 17 | J31: =INDEX(Integrale!$H$3:$H$502,MATCH('NGC0289'!D31,Integrale!$H$3:$H$502,1)) -> 1.06 | K31: =INDEX(Integrale!$I$3:$I$502,MATCH('NGC0289'!D31,Integrale!$H$3:$H$502,1)) -> 0.0601241663 | L31: =INDEX(Integrale!$H$3:$H$502,MATCH('NGC0289'!D31,Integrale!$H$3:$H$502,1)+1) -> 1.07 | M31: =INDEX(Integrale!$I$3:$I$502,MATCH('NGC0289'!D31,Integrale!$H$3:$H$502,1)+1) -> 0.0603600483 | N31: 0.5883014623 | O31: 0.4116985377
A32: 40.81 | B32: 182 | C32: 4.26 | D32: 1.147637795 | E32: 0.06186759529 | F32: 4.293327978e+11 | G32: 212.7126942 | H32: 16.88 | I32: 18 | J32: =INDEX(Integrale!$H$3:$H$502,MATCH('NGC0289'!D32,Integrale!$H$3:$H$502,1)) -> 1.14 | K32: =INDEX(Integrale!$I$3:$I$502,MATCH('NGC0289'!D32,Integrale!$H$3:$H$502,1)) -> 0.0617429593 | L32: =INDEX(Integrale!$H$3:$H$502,MATCH('NGC0289'!D32,Integrale!$H$3:$H$502,1)+1) -> 1.15 | M32: =INDEX(Integrale!$I$3:$I$502,MATCH('NGC0289'!D32,Integrale!$H$3:$H$502,1)+1) -> 0.0619061425 | N32: 0.2362204724 | O32: 0.7637795276
A33: 43.88 | B33: 182 | C33: 4.83 | D33: 1.233970754 | E33: 0.06300169401 | F33: 4.372029239e+11 | G33: 207.0083634 | H33: 13.74 | I33: 19 | J33: =INDEX(Integrale!$H$3:$H$502,MATCH('NGC0289'!D33,Integrale!$H$3:$H$502,1)) -> 1.23 | K33: =INDEX(Integrale!$I$3:$I$502,MATCH('NGC0289'!D33,Integrale!$H$3:$H$502,1)) -> 0.0629602337 | L33: =INDEX(Integrale!$H$3:$H$502,MATCH('NGC0289'!D33,Integrale!$H$3:$H$502,1)+1) -> 1.24 | M33: =INDEX(Integrale!$I$3:$I$502,MATCH('NGC0289'!D33,Integrale!$H$3:$H$502,1)+1) -> 0.0630646479 | N33: 0.6029246344 | O33: 0.3970753656
A34: 46.85 | B34: 180 | C34: 5.5 | D34: 1.317491564 | E34: 0.06371243122 | F34: 4.421351149e+11 | G34: 201.4662854 | H34: 11.93 | I34: 20 | J34: =INDEX(Integrale!$H$3:$H$502,MATCH('NGC0289'!D34,Integrale!$H$3:$H$502,1)) -> 1.31 | K34: =INDEX(Integrale!$I$3:$I$502,MATCH('NGC0289'!D34,Integrale!$H$3:$H$502,1)) -> 0.0636611197 | L34: =INDEX(Integrale!$H$3:$H$502,MATCH('NGC0289'!D34,Integrale!$H$3:$H$502,1)+1) -> 1.32 | M34: =INDEX(Integrale!$I$3:$I$502,MATCH('NGC0289'!D34,Integrale!$H$3:$H$502,1)+1) -> 0.0637296121 | N34: 0.2508436445 | O34: 0.7491563555
A35: 49.92 | B35: 177 | C35: 8.5 | D35: 1.403824522 | E35: 0.06417698457 | F35: 4.453589026e+11 | G35: 195.8833186 | H35: 10.67 | I35: 21 | J35: =INDEX(Integrale!$H$3:$H$502,MATCH('NGC0289'!D35,Integrale!$H$3:$H$502,1)) -> 1.4 | K35: =INDEX(Integrale!$I$3:$I$502,MATCH('NGC0289'!D35,Integrale!$H$3:$H$502,1)) -> 0.064161072 | L35: =INDEX(Integrale!$H$3:$H$502,MATCH('NGC0289'!D35,Integrale!$H$3:$H$502,1)+1) -> 1.41 | M35: =INDEX(Integrale!$I$3:$I$502,MATCH('NGC0289'!D35,Integrale!$H$3:$H$502,1)+1) -> 0.0642026787 | N35: 0.6175478065 | O35: 0.3824521935
A36: 52.99 | B36: 175 | C36: 11 | D36: 1.49015748 | E36: 0.06446239021 | F36: 4.473394871e+11 | G36: 190.5466555 | H36: 8.88 | I36: 22 | J36: =INDEX(Integrale!$H$3:$H$502,MATCH('NGC0289'!D36,Integrale!$H$3:$H$502,1)) -> 1.49 | K36: =INDEX(Integrale!$I$3:$I$502,MATCH('NGC0289'!D36,Integrale!$H$3:$H$502,1)) -> 0.0644620009 | L36: =INDEX(Integrale!$H$3:$H$502,MATCH('NGC0289'!D36,Integrale!$H$3:$H$502,1)+1) -> 1.5 | M36: =INDEX(Integrale!$I$3:$I$502,MATCH('NGC0289'!D36,Integrale!$H$3:$H$502,1)+1) -> 0.0644867222 | N36: 0.9842519685 | O36: 0.0157480315
A37: 55.96 | B37: 172 | C37: 11.6 | D37: 1.57367829 | E37: 0.06462971654 | F37: 4.485006553e+11 | G37: 185.6617161 | H37: 7.94 | I37: 23 | J37: =INDEX(Integrale!$H$3:$H$502,MATCH('NGC0289'!D37,Integrale!$H$3:$H$502,1)) -> 1.57 | K37: =INDEX(Integrale!$I$3:$I$502,MATCH('NGC0289'!D37,Integrale!$H$3:$H$502,1)) -> 0.0646240835 | L37: =INDEX(Integrale!$H$3:$H$502,MATCH('NGC0289'!D37,Integrale!$H$3:$H$502,1)+1) -> 1.58 | M37: =INDEX(Integrale!$I$3:$I$502,MATCH('NGC0289'!D37,Integrale!$H$3:$H$502,1)+1) -> 0.0646393978 | N37: 0.6321709786 | O37: 0.3678290214
A38: 59.03 | B38: 168 | C38: 12.6 | D38: 1.660011249 | E38: 0.06473332059 | F38: 4.4921962e+11 | G38: 180.9141928 | H38: 7.69 | I38: 24 | J38: =INDEX(Integrale!$H$3:$H$502,MATCH('NGC0289'!D38,Integrale!$H$3:$H$502,1)) -> 1.66 | K38: =INDEX(Integrale!$I$3:$I$502,MATCH('NGC0289'!D38,Integrale!$H$3:$H$502,1)) -> 0.0647333107 | L38: =INDEX(Integrale!$H$3:$H$502,MATCH('NGC0289'!D38,Integrale!$H$3:$H$502,1)+1) -> 1.67 | M38: =INDEX(Integrale!$I$3:$I$502,MATCH('NGC0289'!D38,Integrale!$H$3:$H$502,1)+1) -> 0.0647421067 | N38: 0.9988751406 | O38: 0.001124859393
A39: 62 | B39: 158 | C39: 5.38 | D39: 1.743532058 | E39: 0.06479224141 | F39: 4.496285035e+11 | G39: 176.6081516 | H39: 11.78 | I39: 25 | J39: =INDEX(Integrale!$H$3:$H$502,MATCH('NGC0289'!D39,Integrale!$H$3:$H$502,1)) -> 1.74 | K39: =INDEX(Integrale!$I$3:$I$502,MATCH('NGC0289'!D39,Integrale!$H$3:$H$502,1)) -> 0.0647903667 | L39: =INDEX(Integrale!$H$3:$H$502,MATCH('NGC0289'!D39,Integrale!$H$3:$H$502,1)+1) -> 1.75 | M39: =INDEX(Integrale!$I$3:$I$502,MATCH('NGC0289'!D39,Integrale!$H$3:$H$502,1)+1) -> 0.0647956744 | N39: 0.6467941507 | O39: 0.3532058493
A40: 65.07 | B40: 158 | C40: 6.5 | D40: 1.829865017 | E40: 0.0648277824 | F40: 4.498751417e+11 | G40: 172.4389093 | H40: 9.14 | I40: 26 | J40: =INDEX(Integrale!$H$3:$H$502,MATCH('NGC0289'!D40,Integrale!$H$3:$H$502,1)) -> 1.82 | K40: =INDEX(Integrale!$I$3:$I$502,MATCH('NGC0289'!D40,Integrale!$H$3:$H$502,1)) -> 0.0648246547 | L40: =INDEX(Integrale!$H$3:$H$502,MATCH('NGC0289'!D40,Integrale!$H$3:$H$502,1)+1) -> 1.83 | M40: =INDEX(Integrale!$I$3:$I$502,MATCH('NGC0289'!D40,Integrale!$H$3:$H$502,1)+1) -> 0.0648278252 | N40: 0.01349831271 | O40: 0.9865016873
A41: 68.05 | B41: 166 | C41: 15.5 | D41: =A41/$C$12 -> 1.913667042 | E41: =N41*K41+O41*M41 -> 0.06484758454 | F41: =4*$H$12*$E$12*POWER($C$12,3)*E41 -> 4.500125594e+11 | G41: =POWER($I$8*F41/A41,0.5) -> 168.6467301 | H41: =ROUND(ABS((B41-G41)/B41)*100,2) -> 1.59 | I41: 27 | J41: =INDEX(Integrale!$H$3:$H$502,MATCH('NGC0289'!D41,Integrale!$H$3:$H$502,1)) -> 1.91 | K41: =INDEX(Integrale!$I$3:$I$502,MATCH('NGC0289'!D41,Integrale!$H$3:$H$502,1)) -> 0.0648469402 | L41: =INDEX(Integrale!$H$3:$H$502,MATCH('NGC0289'!D41,Integrale!$H$3:$H$502,1)+1) -> 1.92 | M41: =INDEX(Integrale!$I$3:$I$502,MATCH('NGC0289'!D41,Integrale!$H$3:$H$502,1)+1) -> 0.0648486973 | N41: =(L41-D41)/(L41-J41) -> 0.633295838 | O41: =(D41-J41)/(L41-J41) -> 0.366704162
A42: 71.12 | B42: 165 | C42: 8.75 | D42: 2 | E42: 0.0648592413 | F42: 4.50093452e+11 | G42: 164.9814613 | H42: 0.01 | I42: 28 | J42: =INDEX(Integrale!$H$3:$H$502,MATCH('NGC0289'!D42,Integrale!$H$3:$H$502,1)) -> 2 | K42: =INDEX(Integrale!$I$3:$I$502,MATCH('NGC0289'!D42,Integrale!$H$3:$H$502,1)) -> 0.0648592413 | L42: =INDEX(Integrale!$H$3:$H$502,MATCH('NGC0289'!D42,Integrale!$H$3:$H$502,1)+1) -> 2.01 | M42: =INDEX(Integrale!$I$3:$I$502,MATCH('NGC0289'!D42,Integrale!$H$3:$H$502,1)+1) -> 0.0648602055 | N42: 1 | O42: 0
G43: Erreur moy | H43: =ROUND(AVERAGE(H15:H42),2) -> 28.7
B44: Précision= | C44: =ROUND(MAX(0,100-H43),2) -> 71.3 | D44: %
A46: R | B46: V_Obs | C46: Incer V_Obs | D46: V_TURI | E46: A=(V_obs-V_TURI)^2 | F46: A/Incer V_Obs^2
A47: =A15 -> 1.5 | B47: =B15 -> 164 | C47: =C15 -> 28.2 | D47: =ROUND(G15,2) -> 22.9 | E47: =ROUND(POWER((B47-D47),2),2) -> 19909.21 | F47: =ROUND(E47/POWER(C47,2),2) -> 25.04
A48: =A16 -> 2.52 | B48: =B16 -> 194 | C48: 32 | D48: =ROUND(G16,2) -> 37.53 | E48: =ROUND(POWER((B48-D48),2),2) -> 24482.86 | F48: =ROUND(E48/POWER(C48,2),2) -> 23.91
A49: 3.46 | B49: =B17 -> 175 | C49: 25.2 | D49: 51.16 | E49: 15336.35 | F49: 24.15
A50: 4.32 | B50: =B18 -> 185 | C50: 31.5 | D50: 63.31 | E50: 14808.46 | F50: 14.92
A51: 5.43 | B51: =B19 -> 175 | C51: 27.9 | D51: 78.72 | E51: 9269.84 | F51: 11.91
A52: 6.38 | B52: =B20 -> 167 | C52: 27.2 | D52: 91.42 | E52: 5712.34 | F52: 7.72
A53: 7.57 | B53: =B21 -> 176 | C53: 7.18 | D53: 106.83 | E53: 4784.49 | F53: 92.81
A54: 10.6 | B54: =B22 -> 185 | C54: 4.29 | D54: 142.22 | E54: 1830.13 | F54: 99.44
A55: 13.57 | B55: =B23 -> 183 | C55: 4.22 | D55: 170.96 | E55: 144.96 | F55: 8.14
A56: 16.64 | B56: =B24 -> 172 | C56: 4.33 | D56: 193.97 | E56: 482.68 | F56: 25.74
A57: 19.71 | B57: =B25 -> 161 | C57: 4.24 | D57: 210.34 | E57: 2434.44 | F57: 135.42
A58: 22.68 | B58: =B26 -> 156 | C58: 5.08 | D58: 220.45 | E58: 4153.8 | F58: 160.96
A59: 25.75 | B59: =B27 -> 159 | C59: 6.49 | D59: 225.91 | E59: 4476.95 | F59: 106.29
A60: 28.72 | B60: 173 | C60: 6.97 | D60: 227.38 | E60: 2957.18 | F60: 60.87
A61: 31.79 | B61: 177 | C61: 6.57 | D61: 225.97 | E61: 2398.06 | F61: 55.56
A62: 34.77 | B62: 179 | C62: 4.47 | D62: 222.65 | E62: 1905.32 | F62: 95.36
A63: 37.84 | B63: 181 | C63: 4.26 | D63: 217.94 | E63: 1364.56 | F63: 75.19
A64: 40.81 | B64: 182 | C64: 4.26 | D64: 212.71 | E64: 943.1 | F64: 51.97
A65: 43.88 | B65: 182 | C65: 4.83 | D65: 207.01 | E65: 625.5 | F65: 26.81
A66: 46.85 | B66: 180 | C66: 5.5 | D66: 201.47 | E66: 460.96 | F66: 15.24
A67: 49.92 | B67: 177 | C67: 8.5 | D67: 195.88 | E67: 356.45 | F67: 4.93
A68: 52.99 | B68: 175 | C68: 11 | D68: 190.55 | E68: 241.8 | F68: 2
A69: 55.96 | B69: 172 | C69: 11.6 | D69: 185.66 | E69: 186.6 | F69: 1.39
A70: 59.03 | B70: 168 | C70: 12.6 | D70: 180.91 | E70: 166.67 | F70: 1.05
A71: 62 | B71: 158 | C71: 5.38 | D71: 176.61 | E71: 346.33 | F71: 11.97
A72: 65.07 | B72: 158 | C72: 6.5 | D72: 172.44 | E72: 208.51 | F72: 4.94
A73: =A41 -> 68.05 | B73: 166 | C73: 15.5 | D73: 168.65 | E73: 7.02 | F73: 0.03
A74: =A42 -> 71.12 | B74: 165 | C74: 8.75 | D74: 164.98 | E74: 0 | F74: 0
E75: X^2/d_f= | F75: =ROUND(SUM(F47:F74)/(COUNT(F47:F74)-2),2) -> 43.99

Sheet Integrale
H1: u | I1: I(u) = Integrale de 0 à u de ( x^2sech^8(x)dx
H2: 0 | I2: 0
H3: 0.01 | I3: 4.998e-07
H4: 0.02 | I4: 2.9964e-06
H5: 0.03 | I5: 9.477e-06
H6: 0.04 | I6: 2.19098e-05
H7: 0.05 | I7: 4.22345e-05
H8: 0.06 | I8: 7.2353e-05
H9: 0.07 | I9: 0.0001141207
H10: 0.08 | I10: 0.0001693376
H11: 0.09 | I11: 0.0002397401
H12: 0.1 | I12: 0.0003269934
H13: 0.11 | I13: 0.0004326832
H14: 0.12 | I14: 0.0005583096
H15: 0.13 | I15: 0.0007052805
H16: 0.14 | I16: 0.0008749055
H17: 0.15 | I17: 0.0010683906
H18: 0.16 | I18: 0.001286834
H19: 0.17 | I19: 0.001531222
H20: 0.18 | I20: 0.0018024255
H21: 0.19 | I21: 0.0021011974
H22: 0.2 | I22: 0.0024281708
H23: 0.21 | I23: 0.0027838579
H24: 0.22 | I24: 0.0031686489
H25: 0.23 | I25: 0.0035828125
H26: 0.24 | I26: 0.0040264964
H27: 0.25 | I27: 0.0044997288
H28: 0.26 | I28: 0.0050024204
H29: 0.27 | I29: 0.0055343666
H30: 0.28 | I30: 0.006095251
H31: 0.29 | I31: 0.0066846487
H32: 0.3 | I32: 0.0073020305
H33: 0.31 | I33: 0.0079467677
H34: 0.32 | I34: 0.0086181365
H35: 0.33 | I35: 0.0093153237
H36: 0.34 | I36: 0.010037432
H37: 0.35 | I37: 0.0107834863
H38: 0.36 | I38: 0.0115524392
H39: 0.37 | I39: 0.0123431779
H40: 0.38 | I40: 0.0131545302
H41: 0.39 | I41: 0.0139852712
H42: 0.4 | I42: 0.0148341297
H43: 0.41 | I43: 0.0156997951
H44: 0.42 | I44: 0.0165809236
H45: 0.43 | I45: 0.0174761447
H46: 0.44 | I46: 0.0183840679
H47: 0.45 | I47: 0.0193032886
H48: 0.46 | I48: 0.0202323944
H49: 0.47 | I49: 0.0211699709
H50: 0.48 | I50: 0.0221146072
H51: 0.49 | I51: 0.0230649017
H52: 0.5 | I52: 0.0240194669
H53: 0.51 | I53: 0.0249769344
H54: 0.52 | I54: 0.0259359595
H55: 0.53 | I55: 0.0268952255
H56: 0.54 | I56: 0.0278534477
H57: 0.55 | I57: 0.0288093767
H58: 0.56 | I58: 0.0297618021
H59: 0.57 | I59: 0.0307095554
H60: 0.58 | I60: 0.0316515125
H61: 0.59 | I61: 0.0325865959
H62: 0.6 | I62: 0.0335137772
H63: 0.61 | I63: 0.0344320783
H64: 0.62 | I64: 0.0353405729
H65: 0.63 | I65: 0.0362383877
H66: 0.64 | I66: 0.037124703
H67: 0.65 | I67: 0.0379987533
H68: 0.66 | I68: 0.0388598276
H69: 0.67 | I69: 0.0397072693
H70: 0.68 | I70: 0.040540476
H71: 0.69 | I71: 0.0413588991
H72: 0.7 | I72: 0.0421620429
H73: 0.71 | I73: 0.0429494641
H74: 0.72 | I74: 0.0437207705
H75: 0.73 | I75: 0.04447562
H76: 0.74 | I76: 0.0452137189
H77: 0.75 | I77: 0.0459348212
H78: 0.76 | I78: 0.0466387261
H79: 0.77 | I79: 0.0473252771
H80: 0.78 | I80: 0.0479943599
H81: 0.79 | I81: 0.0486459007
H82: 0.8 | I82: 0.0492798642
H83: 0.81 | I83: 0.0498962518
H84: 0.82 | I84: 0.0504950998
H85: 0.83 | I85: 0.0510764772
H86: 0.84 | I86: 0.0516404838
H87: 0.85 | I87: 0.0521872484
H88: 0.86 | I88: 0.0527169267
H89: 0.87 | I89: 0.0532296993
H90: 0.88 | I90: 0.0537257701
H91: 0.89 | I91: 0.0542053641
H92: 0.9 | I92: 0.0546687257
H93: 0.91 | I93: 0.0551161169
H94: 0.92 | I94: 0.0555478158
H95: 0.93 | I95: 0.0559641145
H96: 0.94 | I96: 0.0563653178
H97: 0.95 | I97: 0.0567517415
H98: 0.96 | I98: 0.0571237109
H99: 0.97 | I99: 0.0574815594
H100: 0.98 | I100: 0.0578256274
H101: 0.99 | I101: 0.0581562605
H102: 1 | I102: 0.0584738086
H103: 1.01 | I103: 0.0587786248
H104: 1.02 | I104: 0.059071064
H105: 1.03 | I105: 0.0593514822
H106: 1.04 | I106: 0.0596202355
H107: 1.05 | I107: 0.0598776791
H108: 1.06 | I108: 0.0601241663
H109: 1.07 | I109: 0.0603600483
H110: 1.08 | I110: 0.060585673
H111: 1.09 | I111: 0.0608013846
H112: 1.1 | I112: 0.0610075229
H113: 1.11 | I113: 0.0612044228
H114: 1.12 | I114: 0.0613924139
H115: 1.13 | I115: 0.0615718202
H116: 1.14 | I116: 0.0617429593
H117: 1.15 | I117: 0.0619061425
H118: 1.16 | I118: 0.0620616744
H119: 1.17 | I119: 0.0622098525
H120: 1.18 | I120: 0.0623509673
H121: 1.19 | I121: 0.0624853017
H122: 1.2 | I122: 0.0626131314
H123: 1.21 | I123: 0.0627347243
H124: 1.22 | I124: 0.0628503409
H125: 1.23 | I125: 0.0629602337
H126: 1.24 | I126: 0.0630646479
H127: 1.25 | I127: 0.0631638207
H128: 1.26 | I128: 0.0632579818
H129: 1.27 | I129: 0.0633473531
H130: 1.28 | I130: 0.0634321492
H131: 1.29 | I131: 0.0635125771
H132: 1.3 | I132: 0.0635888365
H133: 1.31 | I133: 0.0636611197
H134: 1.32 | I134: 0.0637296121
H135: 1.33 | I135: 0.0637944919
H136: 1.34 | I136: 0.0638559305
H137: 1.35 | I137: 0.0639140927
H138: 1.36 | I138: 0.0639691366
H139: 1.37 | I139: 0.064021214
H140: 1.38 | I140: 0.0640704704
H141: 1.39 | I141: 0.0641170452
H142: 1.4 | I142: 0.064161072
H143: 1.41 | I143: 0.0642026787
H144: 1.42 | I144: 0.0642419876
H145: 1.43 | I145: 0.0642791157
H146: 1.44 | I146: 0.0643141746
H147: 1.45 | I147: 0.064347271
H148: 1.46 | I148: 0.064378507
H149: 1.47 | I149: 0.0644079795
H150: 1.48 | I150: 0.0644357814
H151: 1.49 | I151: 0.0644620009
H152: 1.5 | I152: 0.0644867222
H153: 1.51 | I153: 0.0645100253
H154: 1.52 | I154: 0.0645319867
H155: 1.53 | I155: 0.0645526787
H156: 1.54 | I156: 0.0645721705
H157: 1.55 | I157: 0.0645905275
H158: 1.56 | I158: 0.0646078121
H159: 1.57 | I159: 0.0646240835
H160: 1.58 | I160: 0.0646393978
H161: 1.59 | I161: 0.0646538084
H162: 1.6 | I162: 0.0646673658
H163: 1.61 | I163: 0.064680118
H164: 1.62 | I164: 0.0646921104
H165: 1.63 | I165: 0.0647033862
H166: 1.64 | I166: 0.0647139861
H167: 1.65 | I167: 0.0647239487
H168: 1.66 | I168: 0.0647333107
H169: 1.67 | I169: 0.0647421067
H170: 1.68 | I170: 0.0647503694
H171: 1.69 | I171: 0.0647581297
H172: 1.7 | I172: 0.064765417
H173: 1.71 | I173: 0.064772259
H174: 1.72 | I174: 0.0647786817
H175: 1.73 | I175: 0.0647847098
H176: 1.74 | I176: 0.0647903667
H177: 1.75 | I177: 0.0647956744
H178: 1.76 | I178: 0.0648006536
H179: 1.77 | I179: 0.064805324
H180: 1.78 | I180: 0.0648097041
H181: 1.79 | I181: 0.0648138112
H182: 1.8 | I182: 0.0648176618
H183: 1.81 | I183: 0.0648212714
H184: 1.82 | I184: 0.0648246547
H185: 1.83 | I185: 0.0648278252
H186: 1.84 | I186: 0.0648307961
H187: 1.85 | I187: 0.0648335795
H188: 1.86 | I188: 0.0648361869
H189: 1.87 | I189: 0.0648386291
H190: 1.88 | I190: 0.0648409162
H191: 1.89 | I191: 0.0648430578
H192: 1.9 | I192: 0.064845063
H193: 1.91 | I193: 0.0648469402
H194: 1.92 | I194: 0.0648486973
H195: 1.93 | I195: 0.0648503418
H196: 1.94 | I196: 0.0648518808
H197: 1.95 | I197: 0.0648533208
H198: 1.96 | I198: 0.0648546681
H199: 1.97 | I199: 0.0648559285
H200: 1.98 | I200: 0.0648571074
... 172 more rows

Sheet Feuil3
